fUST/lending_fUST_20251026
["ID","MTS","AMOUNT","RATE_DAILY","PERIOD"]
[392421700,1761456757016,1083.33,0.00014689,2]
[392421701,1761456757291,1083.33,0.00014689,2]
[392421702,1761456757539,1083.33,0.00014689,2]
[392421703,1761456757711,179.0,0.00014395,2]
[392421704,1761456758133,1083.33,0.00014689,2]
[392421705,1761456758382,1083.33,0.00014689,2]
[392421706,1761456758658,1083.33,0.00014689,2]
[392421707,1761456758904,1083.33,0.00014689,2]
[392421708,1761456759460,300.48506019,0.00014689,2]
[392421709,1761456759482,782.84493981,0.00014689,2]
[392421710,1761456759702,1083.33,0.00014689,2]
[392421711,1761456759928,1083.33,0.00014689,2]
[392421712,1761456760173,1083.33,0.00014689,2]
[392421713,1761456760413,500.0,0.00014689,2]
[392421714,1761456760646,500.0,0.00014689,2]
[392421715,1761456760884,500.0,0.00014689,2]
[392421716,1761456761111,500.0,0.00014689,2]
[392421717,1761456761340,500.0,0.00014689,2]
[392421718,1761456761584,500.0,0.00014689,2]
[392421719,1761456761822,500.0,0.00014689,2]
[392421720,1761456762081,500.0,0.00014689,2]
[392421721,1761456766055,1967.17506019,0.0001459,2]
[392421722,1761456766079,10000.01,0.0001459,2]
[392421723,1761456766102,10000.01,0.0001459,2]
[392421724,1761456766124,10000.01,0.0001459,2]
[392421725,1761456766146,10000.01,0.0001459,2]
[392421726,1761456766167,10000.01,0.0001459,2]
[392421727,1761456766189,10000.01,0.0001459,2]
[392421728,1761456766212,10000.01,0.0001459,2]
[392421729,1761456785752,-300.0,0.00014589,2]
[392421730,1761456786370,-174.2286566,0.0001459,2]
[392421731,1761456793232,-9400.01,0.0001459,2]
[392421732,1761456793273,-10000.01,0.0001459,2]
[392421733,1761456797774,-10000.01,0.0001459,2]
[392421734,1761456797923,-10000.01,0.0001459,2]
[392421735,1761456798084,-10000.01,0.0001459,2]
[392421736,1761456798227,-10000.01,0.0001459,2]
[392421737,1761456798352,-10000.01,0.0001459,2]
[392421738,1761456798479,-10000.01,0.0001459,2]
[392421739,1761456798622,-10000.01,0.0001459,2]
[392421740,1761456798788,-10000.01,0.0001459,2]
[392421741,1761456803988,-10000.01,0.0001459,2]
[392421742,1761456810136,-10000.01,0.0001459,2]
[392421743,1761456810425,-10000.01,0.0001459,2]
[392421744,1761456810557,-10000.01,0.0001459,2]
[392421745,1761456810696,-10000.01,0.0001459,2]
[392421746,1761456810811,-10000.01,0.0001459,2]
[392421747,1761456810910,-10000.01,0.0001459,2]
[392421748,1761456811013,-10000.01,0.0001459,2]
[392421749,1761456811137,-10000.01,0.0001459,2]
[392421750,1761456811277,-10000.01,0.0001459,2]
[392421751,1761456819402,-10000.01,0.0001459,2]
[392421752,1761456825269,-10000.01,0.0001459,2]
[392421753,1761456825499,-10000.01,0.0001459,2]
[392421754,1761456825640,-10000.01,0.0001459,2]
[392421755,1761456825772,-10000.01,0.0001459,2]
[392421756,1761456825971,-10000.01,0.0001459,2]
[392421757,1761456826094,-10000.01,0.0001459,2]
[392421758,1761456826238,-10000.01,0.0001459,2]
[392421759,1761456831340,-10000.01,0.0001459,2]
[392421760,1761456837784,-1541.77371679,0.0001459,2]
[392421761,1761456837814,-6916.46256642,0.0001459,2]
[392421762,1761456855913,-300.0,0.000146,2]
[392421763,1761456864509,300.0,0.000146,2]
[392421764,1761456870028,179.0,0.00014491,2]
[392421765,1761456875481,300.0,0.000146,2]
[392421767,1761456887035,300.0,0.000146,2]
[392421768,1761456892419,179.0,0.00014491,2]
[392421769,1761456913378,300.0,0.000145,2]
[392421770,1761456914996,179.0,0.00014491,2]
[392421771,1761456916974,7663.01,0.0001459,2]
[392421772,1761456916999,10000.01,0.0001459,2]
[392421773,1761456917021,10000.01,0.0001459,2]
[392421774,1761456917047,10000.01,0.0001459,2]
[392421775,1761456917072,10000.01,0.0001459,2]
[392421776,1761456917097,10000.01,0.0001459,2]
[392421777,1761456917121,10000.01,0.0001459,2]
[392421778,1761456917146,10000.01,0.0001459,2]
[392421779,1761456917171,10000.01,0.0001459,2]
[392421780,1761456917195,10000.01,0.0001459,2]
[392421781,1761456927591,-196.00735381,0.000145,2]
[392421782,1761456929304,-103.99264619,0.000145,2]
[392421783,1761456929334,-105.32186419,0.00014537,2]
[392421784,1761456932950,-278.2286566,0.00014537,2]
[392421785,1761456935036,-196.0,0.000145,2]
[392421786,1761456937744,-104.0,0.000145,2]
[392421787,1761456937770,-170.10775606,0.00014537,2]
[392421788,1761456941947,-159.86596959,0.00014537,2]
[392421789,1761456944077,-40.66920179,0.00014537,2]
[392421790,1761456945410,-518.66159642,0.0001459,2]
[392421791,1761456950160,-2658.03800866,0.00014444,2]
[392421792,1761456950189,-300.0,0.000145,2]
[392421793,1761456950333,-4083.93398268,0.0001459,2]
[392421794,1761456950372,-10000.01,0.0001459,2]
[392421795,1761456950397,-10000.01,0.0001459,2]
[392421796,1761456950518,-10000.01,0.0001459,2]
[392421797,1761456950620,-10000.01,0.0001459,2]
[392421798,1761456950726,-10000.01,0.0001459,2]
[392421799,1761456950870,-10000.01,0.0001459,2]
[392421800,1761456950988,-10000.01,0.0001459,2]
[392421801,1761456951111,-10000.01,0.0001459,2]
[392421802,1761456951223,-10000.01,0.0001459,2]
[392421803,1761456959503,-158.13824562,0.000145,2]
[392421804,1761456964641,-203.75590937,0.00014355,2]
[392421805,1761456965488,-96.24409063,0.00014355,2]
[392421806,1761456965518,-141.86175438,0.000145,2]
[392421807,1761456965546,-188.61946714,0.00014537,2]
[392421808,1761456965574,-300.0,0.00014589,2]
[392421809,1761456965663,-8546.5593757,0.0001459,2]
[392421810,1761456965861,-10000.01,0.0001459,2]
[392421811,1761456965987,-10000.01,0.0001459,2]
[392421812,1761456966158,-10000.01,0.0001459,2]
[392421813,1761456966299,-10000.01,0.0001459,2]
[392421814,1761456966444,-10000.01,0.0001459,2]
[392421815,1761456966565,-10000.01,0.0001459,2]
[392421816,1761456966703,-10000.01,0.0001459,2]
[392421817,1761456967197,-10000.01,0.0001459,2]
[392421818,1761456967663,-10000.01,0.0001459,2]
[392421819,1761456974634,-218.51005731,0.00014444,2]
[392421820,1761456977312,-214.72286181,0.00014444,2]
[392421821,1761456978594,-4770.61847746,0.00014444,2]
[392421822,1761456978619,-458.77304508,0.00014444,2]
[392421823,1761456978707,-300.0,0.000145,2]
[392421824,1761456978744,-9400.01,0.0001459,2]
[392421825,1761456978811,-10000.01,0.0001459,2]
[392421826,1761456978875,186.0125625,0.000143,2]
[392421827,1761456978914,-4741.90817815,0.000143,2]
[392421828,1761456978937,-516.1936437,0.000143,2]
[392421829,1761456979170,-10000.01,0.0001459,2]
[392421830,1761456979311,-10000.01,0.0001459,2]
[392421831,1761456979430,-10000.01,0.0001459,2]
[392421832,1761456984817,-300.0,0.000145,2]
[392421833,1761456984866,-9400.01,0.0001459,2]
[392421835,1761456989493,-204.83,0.00014444,2]
[392421836,1761456990756,-3958.17,0.00014444,2]
[392421837,1761456990791,-2083.67,0.0001459,2]
[392421838,1761456993095,1231.692546,0.00013699,2]
[392421841,1761456996940,-300.0,0.00014355,2]
[392421842,1761456996969,-300.0,0.000145,2]
[392421843,1761457003884,8800.01,0.00014444,2]
[392421844,1761457003907,9503.8250452,0.00014444,2]
[392421845,1761457015357,-500.0,0.00014589,2]
[392421846,1761457015389,-500.0,0.00014589,2]
[392421847,1761457015420,-195.00507501,0.00014589,2]
[392421848,1761457015451,-500.0,0.00014589,2]
[392421849,1761457015481,-500.0,0.00014589,2]
[392421850,1761457015512,-556.27353733,0.00014589,2]
[392421851,1761457021349,-6193.63773012,0.0001459,2]
[392421852,1761457021433,-10000.01,0.0001459,2]
[392421853,1761457033566,-300.0,0.00014443,2]
[392421854,1761457049858,300.0,0.00014443,2]
[392421855,1761457051811,-300.0,0.00014589,2]
[392421856,1761457060061,7383.6588302,0.0001418,2]
[392421857,1761457066993,-2110.18731508,0.0001459,2]
[392421858,1761457072296,600.0,0.00014454,2]
[392421859,1761457080237,1518.13434225,0.0001459,2]
[392421863,1761457094804,600.0,0.00014454,2]
[392421864,1761457117899,600.0,0.00014454,2]
[392421866,1761457140393,600.0,0.00014454,2]
[392421867,1761457163246,600.0,0.00014454,2]
[392421868,1761457185751,600.0,0.00014454,2]
[392421871,1761457208277,600.0,0.00014454,2]
[392421876,1761457231054,600.0,0.00014454,2]
[392421882,1761457254188,600.0,0.00014454,2]
[392421883,1761457259465,-300.0,0.000146,2]
[392421884,1761457259490,-32.08304249,0.000146,2]
[392421885,1761457263790,1999.0,0.00030136,120]
[392421886,1761457276757,267.91695751,0.00014454,2]
[392421887,1761457299264,267.91695751,0.00014454,2]
[392421888,1761457321906,267.91695751,0.00014454,2]
[392421889,1761457344358,267.91695751,0.00014454,2]
[392421890,1761457355753,4128.34216996,0.00013863,2]
[392421891,1761457355778,706.83618904,0.00013863,2]
[392421892,1761457367399,267.91695751,0.00014454,2]
[392421893,1761457389922,267.91695751,0.00014454,2]
[392421894,1761457412362,267.91695751,0.00014454,2]
[392421895,1761457435060,267.91695751,0.00014454,2]
[392421896,1761457458453,267.91695751,0.00014454,2]
[392421897,1761457480888,267.91695751,0.00014454,2]
[392421907,1761457503568,267.91695751,0.00014454,2]
[392421918,1761457520638,1999.0,0.00030136,120]
[392421922,1761457526383,267.91695751,0.00014454,2]
[392421937,1761457548704,267.91695751,0.00014454,2]
[392421942,1761457571132,267.91695751,0.00014454,2]
[392421950,1761457594215,267.91695751,0.00014454,2]
[392421959,1761457616644,267.91695751,0.00014454,2]
[392421964,1761457639115,267.91695751,0.00014454,2]
[392421965,1761457662364,267.91695751,0.00014454,2]
[392421967,1761457685246,267.91695751,0.00014454,2]
[392421969,1761457707659,267.91695751,0.00014454,2]
[392421970,1761457730387,267.91695751,0.00014454,2]
[392421971,1761457740189,157.6976018,0.00013868,2]
[392421972,1761457744530,380.45720083,0.00030136,120]
[392421973,1761457754271,267.91695751,0.00014454,2]
[392421974,1761457776612,267.91695751,0.00014454,2]
[392421975,1761457799072,267.91695751,0.00014454,2]
[392421976,1761457821636,267.91695751,0.00014454,2]
[392422006,1761457832863,-267.91695751,0.000146,2]
[392422007,1761457832874,-179.0,0.00014637,2]
[392422008,1761457832885,-300.0,0.00014688,2]
[392422009,1761457832895,-1200.0,0.00014688,2]
[392422010,1761457832906,-500.0,0.00014689,2]
[392422011,1761457832917,-500.0,0.00014689,2]
[392422012,1761457832928,-500.0,0.00014689,2]
[392422013,1761457832938,-500.0,0.00014689,2]
[392422014,1761457832948,-500.0,0.00014689,2]
[392422015,1761457832959,-500.0,0.00014689,2]
[392422016,1761457832970,-500.0,0.00014689,2]
[392422017,1761457832981,-500.0,0.00014689,2]
[392422018,1761457832991,-500.0,0.00014689,2]
[392422019,1761457833001,-500.0,0.00014689,2]
[392422020,1761457833012,-500.0,0.00014689,2]
[392422021,1761457833023,-500.0,0.00014689,2]
[392422022,1761457833034,-500.0,0.00014689,2]
[392422023,1761457833045,-500.0,0.00014689,2]
[392422024,1761457833056,-500.0,0.00014689,2]
[392422025,1761457833067,-500.0,0.00014689,2]
[392422026,1761457833079,-1000.0,0.00014689,2]
[392422027,1761457833089,-1000.0,0.00014689,2]
[392422028,1761457833100,-1000.0,0.00014689,2]
[392422029,1761457833111,-1000.0,0.00014689,2]
[392422030,1761457833122,-1000.0,0.00014689,2]
[392422031,1761457833132,-1000.0,0.00014689,2]
[392422032,1761457833143,-1000.0,0.00014689,2]
[392422033,1761457833153,-1000.0,0.00014689,2]
[392422034,1761457833164,-179.0,0.00014725,2]
[392422035,1761457833175,-179.0,0.00014745,2]
[392422036,1761457833185,-500.0,0.00014788,2]
[392422037,1761457833195,-500.0,0.00014788,2]
[392422038,1761457833205,-500.0,0.00014789,2]
[392422039,1761457833216,-500.0,0.00014789,2]
[392422040,1761457833226,-1000.0,0.00014789,2]
[392422041,1761457833237,-179.0,0.00014873,2]
[392422042,1761457833247,-228.47483748,0.00014899,2]
[392422043,1761457833261,-201.29437068,0.000149,2]
[392422044,1761457833272,-500.0,0.00014927,2]
[392422045,1761457833283,-500.0,0.00014927,2]
[392422046,1761457833294,-1000.0,0.00014928,2]
[392422047,1761457833304,-250.0,0.00014942,2]
[392422048,1761457833315,-179.0,0.00014968,2]
[392422049,1761457833326,-213.96859442,0.00014981,2]
[392422050,1761457833337,-500.0,0.00014989,2]
[392422051,1761457833348,-525.21937624,0.00014989,2]
[392422052,1761457833359,-500.0,0.00014989,2]
[392422053,1761457833370,-500.0,0.00014989,2]
[392422054,1761457833380,-500.0,0.00014989,2]
[392422055,1761457833390,-500.0,0.00014989,2]
[392422056,1761457833401,-500.0,0.00014989,2]
[392422057,1761457833412,-215.86,0.00014989,2]
[392422058,1761457833422,-179.15485384,0.00014989,2]
[392422059,1761457833433,-1000.0,0.00014989,2]
[392422060,1761457833443,-416.73,0.00014989,2]
[392422061,1761457833454,-500.0,0.00014989,2]
[392422062,1761457833464,-500.0,0.00014989,2]
[392422063,1761457833476,-500.0,0.00014989,2]
[392422064,1761457833486,-500.0,0.00014989,2]
[392422065,1761457833497,-500.0,0.00014989,2]
[392422066,1761457833507,-234.24167695,0.00014989,2]
[392422067,1761457833518,-561.27348111,0.00014989,2]
[392422068,1761457833529,-99190.75103982,0.0001499,2]
[392422069,1761457833540,-179.0,0.00015009,2]
[392422070,1761457833551,-4211.0,0.00015026,2]
[392422071,1761457833562,-641.322,0.00015026,2]
[392422072,1761457833572,-984.0,0.00015026,2]
[392422073,1761457833583,-411.0,0.00015026,2]
[392422074,1761457833594,-434.279,0.00015026,2]
[392422075,1761457833605,-2166.0,0.00015026,2]
[392422076,1761457833615,-397.77,0.00015033,2]
[392422077,1761457833626,-500.0,0.00015065,2]
[392422078,1761457833636,-500.0,0.00015065,2]
[392422079,1761457833647,-2465.0,0.00015065,2]
[392422080,1761457833658,-294.25,0.00015089,2]
[392422081,1761457833668,-178.99,0.00015089,2]
[392422082,1761457833679,-202.82,0.00015095,2]
[392422083,1761457833689,-179.0,0.00015108,2]
[392422084,1761457833700,-179.0,0.00015109,2]
[392422085,1761457833710,-196.0,0.0001511,2]
[392422086,1761457833721,-201.29437068,0.00015131,2]
[392422087,1761457833731,-196.0,0.00015156,2]
[392422088,1761457833742,-179.0,0.00015189,2]
[392422089,1761457833752,-196.0,0.00015202,2]
[392422090,1761457833763,-179.0,0.00015216,2]
[392422091,1761457833779,-196.0,0.00015248,2]
[392422092,1761457833789,-196.0,0.00015294,2]
[392422093,1761457833799,-179.0,0.00015322,2]
[392422094,1761457833810,-196.0,0.0001534,2]
[392422095,1761457833820,-179.0,0.00015359,2]
[392422096,1761457833831,-201.29437068,0.00015361,2]
[392422097,1761457833842,-196.0,0.00015386,2]
[392422098,1761457833852,-179.0,0.00015392,2]
[392422099,1761457833862,-196.0,0.00015432,2]
[392422100,1761457833872,-179.0,0.00015453,2]
[392422101,1761457833882,-196.0,0.00015478,2]
[392422102,1761457833892,-196.0,0.00015524,2]
[392422103,1761457833902,-221.88543242,0.00015529,2]
[392422104,1761457833912,-179.0,0.00015559,2]
[392422105,1761457833922,-196.0,0.0001557,2]
[392422106,1761457833932,-800.0,0.00015575,2]
[392422107,1761457833943,-179.0,0.00015582,2]
[392422108,1761457833954,-800.0,0.00015587,2]
[392422109,1761457833966,-201.29437068,0.00015592,2]
[392422110,1761457833976,-196.0,0.00015616,2]
[392422111,1761457833988,-179.0,0.00015632,2]
[392422112,1761457833999,-388.79761245,0.00015646,2]
[392422113,1761457834009,-699.83570241,0.00015646,2]
[392422114,1761457834018,-1244.15235983,0.00015646,2]
[392422115,1761457834028,-1943.98806224,0.00015646,2]
[392422116,1761457834046,-2796.54346682,0.00015646,2]
[392422117,1761457834058,-309.01480692,0.00015657,2]
[392422118,1761457834067,-249.99172787,0.00015657,2]
[392422119,1761457834078,-196.0,0.00015662,2]
[392422120,1761457834089,-449.98511017,0.00015665,2]
[392422121,1761457834098,-2035.14234491,0.00015681,2]
[392422122,1761457834108,-179.0,0.00015682,2]
[392422123,1761457834117,-179.0,0.00015702,2]
[392422124,1761457834127,-196.0,0.00015708,2]
[392422125,1761457834136,-799.97352919,0.00015714,2]
[392422126,1761457834146,-179.0,0.00015716,2]
[392422127,1761457834156,-196.0,0.00015754,2]
[392422128,1761457834166,-300.70929536,0.0001576,2]
[392422129,1761457834176,-1248.70868072,0.00015762,2]
[392422130,1761457834530,-800.0,0.00015769,2]
[392422131,1761457834550,-179.0,0.00015772,2]
[392422132,1761457834562,-196.0,0.000158,2]
[392422133,1761457834572,-500.0,0.00015809,2]
[392422134,1761457834581,-500.0,0.00015809,2]
[392422135,1761457834590,-500.0,0.00015809,2]
[392422136,1761457834599,-624.93491177,0.00015809,2]
[392422137,1761457834608,-78418.82358403,0.0001581,2]
[392422155,1761457838508,-300.0,0.0001581,2]
[392422160,1761457840891,-66667.71272161,0.0001581,2]
[392422161,1761457840902,-102233.39968872,0.0001581,2]
[392422162,1761457841065,-0.01189326,0.0001581,2]
[392422283,1761457886938,-300.0,0.000147,2]
[392422284,1761457943140,350.0,0.00014742,2]
[392422285,1761457991903,315.67078922,0.000145,2]
[392422286,1761458017105,350.0,0.00014581,2]
[392422287,1761458037971,350.0,0.00014643,2]
[392422288,1761458053559,350.0,0.00014643,2]
[392422289,1761458061413,350.0,0.00014643,2]
[392422290,1761458076716,350.0,0.00014643,2]
[392422291,1761458084509,350.0,0.00014643,2]
[392422292,1761458099813,350.0,0.00014643,2]
[392422293,1761458107681,350.0,0.00014643,2]
[392422294,1761458122958,350.0,0.00014643,2]
[392422295,1761458130890,350.0,0.00014643,2]
[392422296,1761458134769,500.0,0.00014788,2]
[392422297,1761458146311,350.0,0.00014643,2]
[392422298,1761458154532,999.0,0.00014465,2]
[392422299,1761458154751,350.0,0.00014643,2]
[392422300,1761458170285,350.0,0.00014643,2]
[392422301,1761458178059,350.0,0.00014643,2]
[392422302,1761458194591,350.0,0.00014643,2]
[392422303,1761458202376,350.0,0.00014643,2]
[392422304,1761458217572,350.0,0.00014643,2]
[392422305,1761458225587,350.0,0.00014643,2]
[392422306,1761458241052,350.0,0.00014643,2]
[392422307,1761458249025,350.0,0.00014643,2]
[392422308,1761458265423,350.0,0.00014643,2]
[392422309,1761458273246,350.0,0.00014643,2]
[392422310,1761458288466,350.0,0.00014643,2]
[392422311,1761458296349,350.0,0.00014643,2]
[392422312,1761458311947,101.01,0.00014643,2]
[392422313,1761458311973,248.99,0.00014643,2]
[392422314,1761458319817,350.0,0.00014643,2]
[392422315,1761458335434,350.0,0.00014643,2]
[392422316,1761458343555,350.0,0.00014643,2]
[392422317,1761458358917,350.0,0.00014643,2]
[392422318,1761458367036,350.0,0.00014643,2]
[392422319,1761458382643,350.0,0.00014643,2]
[392422320,1761458391688,350.0,0.00014643,2]
[392422321,1761458407058,350.0,0.00014643,2]
[392422322,1761458415050,350.0,0.00014643,2]
[392422324,1761458431646,350.0,0.00014643,2]
[392422325,1761458439568,350.0,0.00014643,2]
[392422326,1761458454870,350.0,0.00014643,2]
[392422327,1761458463159,350.0,0.00014643,2]
[392422328,1761458478624,350.0,0.00014643,2]
[392422329,1761458486551,350.0,0.00014643,2]
[392422330,1761458502184,350.0,0.00014643,2]
[392422331,1761458510596,350.0,0.00014643,2]
[392422332,1761458525850,350.0,0.00014643,2]
[392422333,1761458533666,350.0,0.00014643,2]
[392422334,1761458549212,350.0,0.00014643,2]
[392422335,1761458557186,350.0,0.00014643,2]
[392422336,1761458572395,350.0,0.00014643,2]
[392422337,1761458580354,350.0,0.00014643,2]
[392422338,1761458595665,350.0,0.00014643,2]
[392422339,1761458603622,350.0,0.00014643,2]
[392422340,1761458619673,350.0,0.00014643,2]
[392422341,1761458627376,350.0,0.00014643,2]
[392422342,1761458642810,301.02,0.00014643,2]
[392422343,1761458642835,48.98,0.00014643,2]
[392422344,1761458650799,350.0,0.00014643,2]
[392422345,1761458667146,350.0,0.00014643,2]
[392422346,1761458675655,350.0,0.00014643,2]
[392422347,1761458691173,350.0,0.00014643,2]
[392422348,1761458699036,350.0,0.00014643,2]
[392422349,1761458714311,290.8425625,0.00014643,2]
[392422350,1761458796379,20000.0,0.000301,120]
[392422351,1761458810934,1329.7207947,0.00014113,2]
[392422352,1761458840088,353.1180457,0.00014302,2]
[392422353,1761458942271,1999.0,0.00030136,120]
[392423929,1761459031937,-350.0,0.00014791,2]
[392423931,1761459031946,-350.0,0.00014839,2]
[392423933,1761459031955,-1189.0,0.00014968,2]
[392423934,1761459031964,-300.0,0.00014968,2]
[392423937,1761459031973,-300.0,0.00014968,2]
[392423939,1761459031983,-300.0,0.00014968,2]
[392423941,1761459031992,-300.0,0.00014968,2]
[392423942,1761459032001,-1200.0,0.00014968,2]
[392423944,1761459032010,-8414.0,0.0001497,2]
[392423946,1761459032020,-632.0,0.0001497,2]
[392423948,1761459032029,-984.0,0.0001497,2]
[392423950,1761459032038,-2166.0,0.0001497,2]
[392423952,1761459032047,-350.0,0.00014973,2]
[392423954,1761459032056,-350.0,0.00014986,2]
[392423955,1761459032065,-500.0,0.00015006,2]
[392423957,1761459032075,-350.0,0.0001503,2]
[392423958,1761459032084,-500.0,0.00015068,2]
[392423959,1761459032095,-196.0,0.0001511,2]
[392423960,1761459032105,-196.0,0.00015164,2]
[392423961,1761459032116,-810.378329,0.00015179,2]
[392423962,1761459032125,-196.0,0.00015219,2]
[392423963,1761459032135,-196.0,0.00015273,2]
[392423964,1761459032145,-350.0,0.00015279,2]
[392423965,1761459032154,-350.0,0.00015282,2]
[392423966,1761459032164,-215.86,0.00015282,2]
[392423967,1761459032173,-350.0,0.00015327,2]
[392423968,1761459032183,-196.0,0.00015327,2]
[392423969,1761459032192,-196.0,0.00015382,2]
[392423970,1761459032203,-2035.14234491,0.00015427,2]
[392423971,1761459032213,-196.0,0.00015436,2]
[392423972,1761459032221,-350.0,0.00015459,2]
[392423973,1761459032232,-350.0,0.00015462,2]
[392423974,1761459032242,-196.0,0.00015491,2]
[392423975,1761459032252,-800.0,0.00015492,2]
[392423976,1761459032262,-800.0,0.00015496,2]
[392423977,1761459032272,-350.0,0.0001551,2]
[392423978,1761459032282,-196.0,0.00015545,2]
[392423979,1761459032293,-187.24360607,0.00015597,2]
[392423980,1761459032302,-196.0,0.00015599,2]
[392423981,1761459032313,-800.0,0.00015602,2]
[392423982,1761459032322,-401.9540843,0.00015616,2]
[392423983,1761459032332,-350.0,0.00015624,2]
[392423984,1761459032340,-800.0,0.00015624,2]
[392423985,1761459032350,-160.0,0.00015647,2]
[392423986,1761459032358,-350.0,0.00015651,2]
[392423987,1761459032367,-196.0,0.00015654,2]
[392423988,1761459032376,-800.0,0.00015659,2]
[392423989,1761459032385,-350.0,0.00015663,2]
[392423990,1761459032394,-500.0,0.00015672,2]
[392423991,1761459032406,-187.24360605,0.00015672,2]
[392423992,1761459032415,-431.01335203,0.00015691,2]
[392423993,1761459032425,-775.82403366,0.00015691,2]
[392423994,1761459032436,-1379.2427265,0.00015691,2]
[392423995,1761459032445,-2155.06676016,0.00015691,2]
[392423996,1761459032454,-3100.1928385,0.00015691,2]
[392423997,1761459032462,-163.96917387,0.00015695,2]
[392423998,1761459032471,-392.89143677,0.00015695,2]
[392423999,1761459032480,-640.45,0.00015695,2]
[392424000,1761459032489,-13129.4364993,0.00015696,2]
[392424001,1761459032505,-103764.33271645,0.00015696,2]
[392424028,1761459043043,-5598.4313211,0.0001497,2]
[392424029,1761459043053,-411.0,0.0001497,2]
[392424030,1761459043063,-434.279,0.0001497,2]
[392424031,1761459043072,-500.0,0.00015005,2]
[392424032,1761459043082,-500.0,0.00015005,2]
[392424033,1761459043092,-641.51688766,0.00015005,2]
[392424034,1761459043102,-553.72766055,0.00015005,2]
[392424035,1761459043111,-278.434899,0.00015005,2]
[392424036,1761459043128,-500.0,0.00015005,2]
[392424037,1761459043141,-506.24453553,0.00015005,2]
[392424038,1761459043151,-255.35031357,0.00015005,2]
[392424039,1761459043160,-500.0,0.00015005,2]
[392424040,1761459043170,-500.0,0.00015005,2]
[392424041,1761459043180,-457.53944761,0.00015005,2]
[392424042,1761459043190,-270.0,0.00015005,2]
[392424043,1761459043199,-39784.41605785,0.00015696,2]
[392424044,1761459046153,-8528.49145041,0.00015696,2]
[392424045,1761459046178,-527.3554621,0.00015696,2]
[392424046,1761459046199,-1437.1938843,0.00015696,2]
[392424050,1761459176012,1999.0,0.00030136,120]
[392424051,1761459256305,5000.0,0.0001912,9]
[392424052,1761459265401,158.234842,0.0003,120]
[392424053,1761459429345,1000.0,0.00030136,120]
[392424054,1761459474467,5000.0,0.0001912,9]
[392424055,1761459584467,1231.700629,0.00013699,2]
[392424057,1761459646458,849.506657,0.00014391,2]
[392424062,1761460010229,386.59028817,0.00014179,2]
[392424063,1761460012282,695.8625187,0.00014179,2]
[392424064,1761460014309,1237.08892214,0.00014179,2]
[392424065,1761460016299,1932.95144084,0.00014179,2]
[392424066,1761460018132,2780.66662473,0.00014179,2]
[392424082,1761460182460,1003.9900488,0.00014036,2]
[392424101,1761460232310,-709.08103791,0.00014968,2]
[392424102,1761460232320,-459.99126439,0.0001499,2]
[392424103,1761460232332,-1200.0,0.00014999,2]
[392424104,1761460232342,-7097.15535884,0.00015,2]
[392424108,1761460237944,-528.08298489,0.00015,2]